Workbook

Sheet Лист1
A1: Школа | C1: МБОУ " Алексеевская ООШ" Бавлинского муниципального района РТ | F1: Утвердил: | G1: должность
A2: Типовое примерное меню приготавливаемых блюд | G2: фамилия | H2: Евстигнеева В.Р
A3: Возрастная категория | E3: 7-11 лет | G3: дата | H3: 12 | I3: 1 | J3: 2026
H4: день | I4: месяц | J4: год
A5: Неделя | B5: День недели | C5: Прием пищи | D5: Раздел меню | E5: Блюда | F5: Вес блюда, г | G5: Белки | H5: Жиры | I5: Углеводы | J5: Калорийность | K5: № рецептуры | L5: Цена
A6: 1 | B6: 1 | C6: Завтрак | D6: гор.блюдо | E6: ПЛОВ ИЗ ПТИЦЫ | F6: 200 | G6: 12.25 | H6: 15.37 | I6: 40.05 | J6: 361.3 | K6: 291 | L6: 77.76
D7: салат | E7: САЛАТ ИЗ БЕЛОКАЧАННОЙ КАПУСТЫ | F7: 60 | G7: 2.99 | H7: 3.82 | I7: 4.7 | J7: 52.8 | K7: 45
D8: гор.напиток | E8: ЧАЙ ЧЁРНЫЙ С САХАРОМ, ЛИМОНОМ | F8: 215 | G8: 0.13 | H8: 0.02 | I8: 15.2 | J8: 62 | K8: 377
D9: хлеб | E9: ХЛЕБ ПШЕНИЧНЫЙ | F9: 30 | G9: 2.28 | H9: 0.24 | I9: 14.76 | J9: 70.2 | K9: 573
D10: фрукты
D11: хлеб | E11: ХЛЕБ ДАРНИЦКИЙ | F11: 20 | G11: 1.6 | H11: 0.3 | I11: 8.02 | J11: 41.2 | K11: 574
D13: итого | F13: =SUM(F6:F12) -> 525 | G13: 19.25 | H13: 19.75 | I13: 82.73 | J13: 587.5 | L13: =SUM(L6:L12) -> 77.76
A14: =A6 -> 1 | B14: =B6 -> 1 | C14: Обед | D14: закуска
D15: 1 блюдо
D16: 2 блюдо
D17: гарнир
D18: напиток
D19: хлеб бел.
D20: хлеб черн.
D23: итого | F23: =SUM(F14:F22) -> 0 | G23: 0 | H23: 0 | I23: 0 | J23: 0 | L23: =SUM(L14:L22) -> 0
A24: =A6 -> 1 | B24: =B6 -> 1 | C24: Итого за день: | F24: =F13+F23 -> 525 | G24: 19.25 | H24: 19.75 | I24: 82.73 | J24: 587.5 | L24: =L13+L23 -> 77.76
A25: 1 | B25: 2 | C25: Завтрак | D25: гор.блюдо | E25: ТЕФТЕЛИ ГОВЯЖЬИ С СОУСОМ КАРТТОФЕЛЬНОЕ ПЮРЕ | F25: 240 | G25: 11.58 | H25: 16.90 | I25: 18.36 | J25: 216.97 | K25: 279/203 | L25: 77.76
D27: гор.напиток | E27: КОМПОТ ИЗ СМЕСИ СУХОФРУКТОВ | F27: 200 | G27: 1.16 | H27: 0.3 | I27: 12.7 | J27: 112.8 | K27: 349
D28: печенье | E28: ПЕЧЕНЬЕ | F28: 30 | G28: 2.28 | H28: 0.24 | I28: 14.76 | J28: 70.2 | K28: 574
D29: фрукты
D30: хлеб | E30: ХЛЕБ ПШЕНИЧНЫЙ | F30: 30 | G30: 2.28 | H30: 0.24 | I30: 14.76 | J30: 70.2 | K30: 574
D31: хлеб | E31: ХЛЕБ ДАРНИЦКИЙ | F31: 20 | G31: 1.6 | H31: 0.3 | I31: 8.02 | J31: 41.2 | K31: 573
D32: итого | F32: =SUM(F25:F31) -> 520 | G32: 18.9 | H32: 17.98 | I32: 68.6 | J32: 511.37 | L32: =SUM(L25:L31) -> 77.76
A33: =A25 -> 1 | B33: =B25 -> 2 | C33: Обед | D33: закуска
D34: 1 блюдо
D35: 2 блюдо
D36: гарнир
D37: напиток
D38: хлеб бел.
D39: хлеб черн.
D42: итого | F42: =SUM(F33:F41) -> 0 | G42: 0 | H42: 0 | I42: 0 | J42: 0 | L42: =SUM(L33:L41) -> 0
A43: =A25 -> 1 | B43: =B25 -> 2 | C43: Итого за день: | F43: =F32+F42 -> 520 | G43: 18.9 | H43: 17.98 | I43: 68.6 | J43: 511.37 | L43: =L32+L42 -> 77.76
A44: 1 | B44: 3 | C44: Завтрак | D44: гор.блюдо | E44: ФРИКАДЕЛЬКИ КУРИНЫЕ В СОУСЕ МАКАРОННЫЕ ИЗДЕЛИЯ ОТВАРНЫЕ С МАСЛОМ | F44: 243 | G44: 14.85 | H44: 18.75 | I44: 36.22 | J44: 369.13 | K44: 279/312 | L44: 77.76
D46: гор.напиток | E46: ЧАЙ ЧЕРНЫЙ С САХОРОМ | F46: 208 | G46: 0.07 | H46: 0.02 | I46: 15 | J46: 60 | K46: 376
D47: хлеб | E47: ХЛЕБ ПШЕНИЧНЫЙ | F47: 30 | G47: 2.28 | H47: 0.24 | I47: 14.76 | J47: 70.2 | K47: 573
D48: фрукты | E48: ЯБЛОКИ | F48: 100 | G48: 0.4 | H48: 0.4 | I48: 9.8 | J48: 47 | K48: 338
D49: хлеб | E49: ХЛЕБ СЕЛЬСКИЙ | F49: 20 | G49: 1.6 | H49: 0.3 | I49: 8.02 | J49: 41.2 | K49: 574
D51: итого | F51: =SUM(F44:F50) -> 601 | G51: 19.2 | H51: 19.71 | I51: 83.8 | J51: 587.53 | L51: =SUM(L44:L50) -> 77.76
A52: =A44 -> 1 | B52: =B44 -> 3 | C52: Обед | D52: закуска
D53: 1 блюдо
D54: 2 блюдо
D55: гарнир
D56: напиток
D57: хлеб бел.
D58: хлеб черн.
D61: итого | F61: =SUM(F52:F60) -> 0 | G61: 0 | H61: 0 | I61: 0 | J61: 0 | L61: =SUM(L52:L60) -> 0
A62: =A44 -> 1 | B62: =B44 -> 3 | C62: Итого за день: | F62: =F51+F61 -> 601 | G62: 19.2 | H62: 19.71 | I62: 83.8 | J62: 587.53 | L62: =L51+L61 -> 77.76
A63: 1 | B63: 4 | C63: Завтрак | D63: гор.блюдо | E63: ГРЕЧКА С КУРИЦЕЙ ПО КУПЕЧЕСКИ | F63: 200 | G63: 12.02 | H63: 15.20 | I63: 40.28 | J63: 361.36 | K63: 295 | L63: 77.76
D64: салат | E64: САЛАТ ИЗ СВЕКЛЫ ОТВАРНОЙ | F64: 60 | G64: 0.84 | H64: 3.66 | I64: 4.45 | J64: 54.60 | K64: 52
D65: гор.напиток | E65: ЧАЙ ЧЁРНЫЙ С САХАРОМ | F65: 208 | G65: 0.07 | H65: 0.02 | I65: 15.00 | J65: 60.00 | K65: 350
D66: хлеб | E66: ХЛЕБ ПШЕНИЧНЫЙ | F66: 30 | G66: 2.28 | H66: 0.24 | I66: 14.76 | J66: 70.2 | K66: 573
D67: фрукты
D68: хлеб | E68: ХЛЕБ ДАРНИЦКИЙ | F68: 20 | G68: 1.6 | H68: 0.3 | I68: 8.02 | J68: 41.2 | K68: 574
D70: итого | F70: =SUM(F63:F69) -> 518 | G70: 16.81 | H70: 19.42 | I70: 82.51 | J70: 587.36 | L70: =SUM(L63:L69) -> 77.76
A71: =A63 -> 1 | B71: =B63 -> 4 | C71: Обед | D71: закуска
D72: 1 блюдо
D73: 2 блюдо
D74: гарнир
D75: напиток
D76: хлеб бел.
D77: хлеб черн.
D80: итого | F80: =SUM(F71:F79) -> 0 | G80: 0 | H80: 0 | I80: 0 | J80: 0 | L80: =SUM(L71:L79) -> 0
A81: =A63 -> 1 | B81: =B63 -> 4 | C81: Итого за день: | F81: =F70+F80 -> 518 | G81: 16.81 | H81: 19.42 | I81: 82.51 | J81: 587.36 | L81: =L70+L80 -> 77.76
A82: 1 | B82: 5 | C82: Завтрак | D82: гор.блюдо | E82: РАГУ ИЗ ПТИЦЫ | F82: 200 | G82: 14.5 | H82: 17.54 | I82: 40.8 | J82: 348.2 | K82: 289 | L82: 77.76
D83: салат | E83: САЛАТ ИЗ МОРКОВИ | F83: 60 | G83: 0.74 | H83: 1.13 | I83: 4.88 | J83: 49.02 | K83: 62
D84: напиток | E84: КИСЕЛЬ | F84: 200 | G84: 0 | H84: 0 | I84: 15 | J84: 60 | K84: 484
D85: хлеб | E85: ХЛЕБ ПШЕНИЧНЫЙ | F85: 30 | G85: 2.28 | H85: 0.24 | I85: 14.76 | J85: 70.2 | K85: 574
D86: фрукты
D87: хлеб | E87: ХЛЕБ ДАРНИЦКИЙ | F87: 20 | G87: 1.6 | H87: 0.3 | I87: 8.02 | J87: 41.2 | K87: 573
D89: итого | F89: =SUM(F82:F88) -> 510 | G89: 19.12 | H89: 19.208 | I89: 83.46 | J89: 568.62 | L89: =SUM(L82:L88) -> 77.76
A90: =A82 -> 1 | B90: =B82 -> 5 | C90: Обед | D90: закуска
D91: 1 блюдо
D92: 2 блюдо
D93: гарнир
D94: напиток
D95: хлеб бел.
D96: хлеб черн.
A99: 1 | B99: 6 | C99: Завтрак | D99: гор.блюдо | E99: МАКАРОННЫЕ ИЗДЕЛИЯ ОТВАРНЫЕ С МАСЛОМ И ПТИЦА ТУШЕНАЯ В СОУСЕ | F99: 243 | G99: 15.250 | H99: 17.270 | I99: 34.270 | J99: 349.930 | L99: 77.760
D100: гор.напиток | E100: ЧАЙ ЧЕРНЫЙ С САХАРОМ | F100: 208 | G100: 0.070 | H100: 0.020 | I100: 15.000 | J100: 60.000
D101: хлеб | E101: ХЛЕБ ПШЕНИЧНЫЙ | F101: 30 | G101: 2.280 | H101: 0.240 | I101: 14.760 | J101: 70.200
D102: хлеб | E102: ХЛЕБ ДАРНИЦКИЙ | F102: 20 | G102: 1.600 | H102: 0.300 | I102: 8.020 | J102: 41.200
D103: фрукты
D105: итого | F105: 501 | G105: =SUM(G99:G104) -> 19.2 | H105: =SUM(H99:H104) -> 17.83 | I105: =SUM(I99:I104) -> 72.05 | J105: =SUM(J99:J104) -> 521.33 | L105: 77.76
A106: =A99 -> 1 | B106: =B99 -> 6 | C106: Обед | D106: закуска
D107: 1 блюдо
D108: 2 блюдо
D109: гарнир
D110: напиток
D111: хлеб бел.
D112: хлеб черн.
D115: итого | F115: =SUM(F106:F114) -> 0 | G115: =SUM(G106:G114) -> 0 | H115: 0 | I115: 0 | J115: 0 | L115: =SUM(L106:L114) -> 0
A116: =A99 -> 1 | B116: =B99 -> 6 | C116: Итого за день: | F116: =F105+F115 -> 501 | G116: =G105+G115 -> 19.2 | H116: 17.83 | I116: 72.05 | J116: 521.33 | L116: =L105+L115 -> 77.76
A117: 2 | B117: 1 | C117: Завтрак | D117: гор. блюдо | E117: КАША ВЯЗКАЯ МОЛОЧНАЯ ПШЕННАЯ С МАСЛОМ | F117: 205 | G117: 13.7 | H117: 17.51 | I117: 38.14 | J117: 314.25 | K117: 173 | L117: 77.76
D118: гор.напиток | E118: КОМПОТ ИЗ СМЕСИ СУХОФРУКТОВ | F118: 200 | G118: 1.16 | H118: 0.3 | I118: 12.7 | J118: 112.8 | K118: 349
D119: хлеб | E119: ХЛЕБ ПШЕНИЧНЫЙ | F119: 30 | G119: 2.28 | H119: 0.24 | I119: 14.76 | J119: 70.2 | K119: 574
D120: фрукты | E120: ЯБЛОКИ | F120: 100 | G120: 0.4 | H120: 0.4 | I120: 9.8 | J120: 47 | K120: 338
D121: хлеб | E121: ХЛЕБ ДАРНИЦКИЙ | F121: 20 | G121: 1.6 | H121: 0.3 | I121: 8.02 | J121: 41.2 | K121: 573
D123: итого | F123: =SUM(F117:F122) -> 555 | G123: =SUM(G117:G122) -> 19.14 | H123: =SUM(H117:H122) -> 18.75 | I123: =SUM(I117:I122) -> 83.42 | J123: =SUM(J117:J122) -> 585.45 | L123: =SUM(L117:L122) -> 77.76
A124: =A117 -> 2 | B124: =B117 -> 1 | C124: Обед | D124: закуска
D125: 1 блюдо
D126: 2 блюдо
D127: гарнир
D128: напиток
D129: хлеб бел.
D130: хлеб черн.
D132: итого | F132: =SUM(F124:F131) -> 0 | G132: =SUM(G124:G131) -> 0 | H132: =SUM(H124:H131) -> 0 | I132: =SUM(I124:I131) -> 0 | J132: =SUM(J124:J131) -> 0 | L132: =SUM(L124:L131) -> 0
A133: =A117 -> 2 | B133: =B117 -> 1 | C133: Итого за день: | F133: =F123+F132 -> 555 | G133: 19.14 | H133: 18.75 | I133: 83.42 | J133: 585.45 | L133: =L123+L132 -> 77.76
A134: 2 | B134: 2 | C134: Завтрак | D134: гор.блюдо | E134: ФРИКАДЕЛЬКИ КУРИНЫЕ В СОУСЕ МАКАРОННЫМИ ИЗДЕЛИЯ ОТВАРНЫЕ С МАСЛОМ | F134: 243 | G134: 14.76 | H134: 18.75 | I134: 36.22 | J134: 369.13 | K134: 279\312 | L134: 77.76
D135: гор.напиток | E135: ЧАЙ ЧЕРНЫЙ С САХОРОМ | F135: 208 | G135: 0.07 | H135: 0.02 | I135: 15 | J135: 60 | K135: 376
D136: хлеб | E136: ХЛЕБ ПШЕНИЧНЫЙ | F136: 30 | G136: 2.28 | H136: 0.24 | I136: 14.76 | J136: 70.2 | K136: 574
D137: хлеб | E137: ХЛЕБ ДАРНИЦКИЙ | F137: 20 | G137: 1.6 | H137: 0.3 | I137: 8.02 | J137: 41.2 | K137: 573
D139: итого | F139: =SUM(F134:F138) -> 501 | G139: =SUM(G134:G138) -> 18.71 | H139: =SUM(H134:H138) -> 19.31 | I139: =SUM(I134:I138) -> 74 | J139: =SUM(J134:J138) -> 540.53 | L139: =SUM(L134:L138) -> 77.76
A140: =A134 -> 2 | B140: =B134 -> 2 | C140: Обед | D140: закуска
D141: 1 блюдо
D142: 2 блюдо
D143: гарнир
D144: напиток
D145: хлеб бел.
D146: хлеб черн.
D149: итого | F149: =SUM(F140:F148) -> 0 | G149: 0 | H149: 0 | I149: 0 | J149: 0 | L149: =SUM(L140:L148) -> 0
A150: =A134 -> 2 | B150: =B134 -> 2 | C150: Итого за день: | F150: =F139+F149 -> 501 | G150: 18.71 | H150: 19.31 | I150: 74 | J150: 540.53 | L150: =L139+L149 -> 77.76
A151: 2 | B151: 3 | C151: Завтрак | D151: гор.блюдо | E151: РЫБА,ТУШЕННАЯ С ОВОЩАМИ КАША РАССЫПЧАТАЯ ПШЕНИЧНАЯ С МАСЛОМ | F151: 243 | G151: 15.10 | H151: 18.57 | I151: 44.57 | J151: 397.00 | K151: 171\229 | L151: 77.76
D152: гор.напиток | E152: ЧАЙ ЧЕРНЫЙ С САХОРОМ,ЛИМОНОМ | F152: 208 | G152: 0.13 | H152: 0.02 | I152: 15 | J152: 62 | K152: 376
D153: хлеб | E153: ХЛЕБ ПШЕНИЧНЫЙ | F153: 30 | G153: 2.28 | H153: 0.24 | I153: 15.2 | J153: 70.2 | K153: 573
D154: хлеб | E154: ХЛЕБ ДАРНИЦКИЙ | F154: 20 | G154: 1.6 | H154: 0.3 | I154: 8.02 | J154: 41.2 | K154: 574
D156: итого | F156: =SUM(F151:F155) -> 501 | G156: =SUM(G151:G155) -> 19.11 | H156: =SUM(H151:H155) -> 19.13 | I156: =SUM(I151:I155) -> 82.79 | J156: =SUM(J151:J155) -> 570.4 | L156: =SUM(L151:L155) -> 77.76
A157: =A151 -> 2 | B157: =B151 -> 3 | C157: Обед | D157: закуска
D158: 1 блюдо
D159: 2 блюдо
D160: гарнир
D161: напиток
D162: хлеб бел.
D163: хлеб черн.
D166: итого | F166: =SUM(F157:F165) -> 0 | G166: 0 | H166: 0 | I166: 0 | J166: 0 | L166: =SUM(L157:L165) -> 0
A167: =A151 -> 2 | B167: =B151 -> 3 | C167: Итого за день: | F167: =F156+F166 -> 501 | G167: 19.11 | H167: 19.13 | I167: 82.79 | J167: 570.4 | L167: =L156+L166 -> 77.76
A168: 2 | B168: 4 | C168: Завтрак | D168: гор.блюдо | E168: ГРЕЧКА С КУРИЦЕЙ ПО КУПЕЧЕСКИ | F168: 200 | G168: 12.02 | H168: 15.2 | I168: 40.28 | J168: 361.3 | K168: 370 | L168: 77.76
D169: салат | E169: САЛАТ ИЗ БЕЛОКАЧАННОЙ КАПУСТЫ | F169: 60 | G169: 69,43 | H169: 52.800 | I169: 2.990 | J169: 3.820 | K169: 4.700
D170: гор.напиток | E170: ЧАЙ ЧЁРНЫЙ С САХАРОМ | F170: 208 | G170: 0.07 | H170: 0.02 | I170: 15.00 | J170: 60.00 | K170: 350
D171: хлеб | E171: ХЛЕБ ПШЕНИЧНЫЙ | F171: 30 | G171: 2.28 | H171: 0.24 | I171: 14.76 | J171: 70.2 | K171: 574
D172: хлеб | E172: ХЛЕБ СЕЛЬСКИЙ | F172: 20 | G172: 1.6 | H172: 0.3 | I172: 8.02 | J172: 41.2 | K172: 573
D174: итого | F174: =SUM(F168:F173) -> 518 | G174: =SUM(G168:G173) -> 15.97 | H174: =SUM(H168:H173) -> 68.56 | I174: =SUM(I168:I173) -> 81.05 | J174: =SUM(J168:J173) -> 536.52 | L174: =SUM(L168:L173) -> 77.76
A175: =A168 -> 2 | B175: =B168 -> 4 | C175: Обед | D175: закуска
D176: 1 блюдо
D177: 2 блюдо
D178: гарнир
D179: напиток
D180: хлеб бел.
D181: хлеб черн.
D184: итого | F184: =SUM(F175:F183) -> 0 | G184: 0 | H184: 0 | I184: 0 | J184: 0 | L184: =SUM(L175:L183) -> 0
A185: =A168 -> 2 | B185: =B168 -> 4 | C185: Итого за день: | F185: =F174+F184 -> 518 | G185: 15.97 | H185: 68.56 | I185: 81.05 | J185: 536.52 | L185: =L174+L184 -> 77.76
A186: 2 | B186: 5 | C186: Завтрак | D186: гор.блюдо | E186: РАГУ ИЗ ПТИЦЫ | F186: 200 | G186: 14.5 | H186: 17.54 | I186: 40.8 | J186: 348.2 | K186: 289 | L186: 77.76
D187: салат | E187: САЛАТ ИЗ МОРКОВИ | F187: 60 | G187: 2.99 | H187: 3.82 | I187: 4.7 | J187: 52.8 | K187: 45
D188: напиток | E188: КИСЕЛЬ | F188: 200 | G188: 0 | H188: 0 | I188: 15 | J188: 60 | K188: 484
D189: хлеб | E189: ХЛЕБ ПШЕНИЧНЫЙ | F189: 30 | G189: 2.28 | H189: 0.24 | I189: 14.76 | J189: 70.2 | K189: 574
D190: хлеб | E190: ХЛЕБ ДАРНИЦКИЙ | F190: 20 | G190: 1.6 | H190: 0.3 | I190: 8.02 | J190: 41.2 | K190: 573
D192: итого | F192: =SUM(F186:F191) -> 510 | G192: =SUM(G186:G191) -> 21.37 | H192: =SUM(H186:H191) -> 21.9 | I192: =SUM(I186:I191) -> 83.28 | J192: =SUM(J186:J191) -> 572.4 | L192: =SUM(L186:L191) -> 77.76
A193: =A186 -> 2 | B193: =B186 -> 5 | C193: Обед | D193: закуска
D194: 1 блюдо
D195: 2 блюдо
D196: гарнир
D197: напиток
D198: хлеб бел.
D199: хлеб черн.
D201: итого
A202: =A186 -> 2 | B202: =B186 -> 5 | C202: Итого за день: | F202: =F192 -> 510 | G202: =G192 -> 21.37 | H202: =H192 -> 21.9 | I202: =I192 -> 83.28 | J202: =J192 -> 572.4 | L202: 77.76
A203: 2 | B203: 6 | C203: Завтрак | D203: гор.блюдо | E203: МАКАРОННЫЕ ИЗДЕЛИЯ ОТВАРНЫЕ С МАСЛОМ И ПТИЦА ТУШЕНАЯ В СОУСЕ | F203: 243 | G203: 15.250 | H203: 17.270 | I203: 34.270 | J203: 349.930 | L203: 77.760
D204: гор.напиток | E204: ЧАЙ ЧЕРНЫЙ С САХАРОМ | F204: 208 | G204: 0.070 | H204: 0.020 | I204: 15.000 | J204: 60.000
D205: хлеб | E205: ХЛЕБ ПШЕНИЧНЫЙ | F205: 30 | G205: 2.280 | H205: 0.240 | I205: 14.760 | J205: 70.200
D206: хлеб | E206: ХЛЕБ ДАРНИЦКИЙ | F206: 20 | G206: 1.600 | H206: 0.300 | I206: 8.020 | J206: 41.200
D207: итого
A208: =A203 -> 2 | B208: =B203 -> 6 | C208: Обед | D208: закуска
D209: 1 блюдо
D210: 2 блюдо
D211: гарнир
D212: напиток
D213: хлеб бел.
D214: хлеб черн.
D215: итого
A216: =A203 -> 2 | B216: =B203 -> 6 | C216: Итого за день: | F216: =F202+F215 -> 510 | G216: =G202+G215 -> 21.37 | H216: 21.9 | I216: 83.28 | J216: 572.4
C217: Среднее значение за период: | F217: 523.17 | G217: 18.908 | H217: =(H24+H42+H60+H79+H98+H116+H132+H147+H162+H179+H196+H216)/(IF(H24=0,0,1)+IF(H42=0,0,1)+IF(H60=0,0,1)+IF(H79=0,0,1)+IF(H98=0,0,1)+IF(H116=0,0,1)+IF(H132=0,0,1)+IF(H147=0,0,1)+IF(H162=0,0,1)+IF(H179=0,0,1)+IF(H196=0,0,1)+IF(H216=0,0,1)) -> 19.82666667 | I217: =(I24+I42+I60+I79+I98+I116+I132+I147+I162+I179+I196+I216)/(IF(I24=0,0,1)+IF(I42=0,0,1)+IF(I60=0,0,1)+IF(I79=0,0,1)+IF(I98=0,0,1)+IF(I116=0,0,1)+IF(I132=0,0,1)+IF(I147=0,0,1)+IF(I162=0,0,1)+IF(I179=0,0,1)+IF(I196=0,0,1)+IF(I216=0,0,1)) -> 79.35333333 | J217: =(J24+J42+J60+J79+J98+J116+J132+J147+J162+J179+J196+J216)/(IF(J24=0,0,1)+IF(J42=0,0,1)+IF(J60=0,0,1)+IF(J79=0,0,1)+IF(J98=0,0,1)+IF(J116=0,0,1)+IF(J132=0,0,1)+IF(J147=0,0,1)+IF(J162=0,0,1)+IF(J179=0,0,1)+IF(J196=0,0,1)+IF(J216=0,0,1)) -> 560.41 | L217: =(L24+L42+L60+L79+L98+L116+L132+L147+L162+L179+L196+L216)/(IF(L24=0,0,1)+IF(L42=0,0,1)+IF(L60=0,0,1)+IF(L79=0,0,1)+IF(L98=0,0,1)+IF(L116=0,0,1)+IF(L132=0,0,1)+IF(L147=0,0,1)+IF(L162=0,0,1)+IF(L179=0,0,1)+IF(L196=0,0,1)+IF(L216=0,0,1)) -> 77.76
